[Event "Orlicka sachovnice 2023"]
[Site "Usti nad Orlici, Czech Republic"]
[Date "2023.05.06"]
[Round "4.6"]
[White "Holasek, Tomas"]
[Black "Kvapil, Paul"]
[Result "0-1"]
[TimeControl "12 min + 3 s"]
[WhiteElo "1189"]
[BlackElo "1279"]

1. e4 {[%clk 00:12:04]} {[%emt 00:00:02]} c5 {[%clk 00:12:00]} {[%emt
00:00:06]} 2. Nf3 {[%clk 00:11:53]} {[%emt 00:00:15]} Nc6 {[%clk 00:12:01]}
{[%emt 00:00:02]} 3. d4 {[%clk 00:11:31]} {[%emt 00:00:25]} cxd4 {[%clk
00:11:56]} {[%emt 00:00:08]} 4. Nxd4 {[%clk 00:11:32]} {[%emt 00:00:03]} d6
{[%clk 00:11:55]} {[%emt 00:00:04]} 5. Be3 {[%clk 00:11:19]} {[%emt 00:00:16]}
Nf6 {[%clk 00:11:39]} {[%emt 00:00:19]} 6. Nc3 {[%clk 00:11:15]} {[%emt
00:00:08]} e5 {[%clk 00:11:22]} {[%emt 00:00:20]} 7. Nf3 {[%clk 00:10:35]}
{[%emt 00:00:43]} Be6 {[%clk 00:10:50]} {[%emt 00:00:34]} 8. Bb5 {[%clk
00:10:14]} {[%emt 00:00:25]} a6 {[%clk 00:10:16]} {[%emt 00:00:37]} 9. Bxc6+
{[%clk 00:10:04]} {[%emt 00:00:13]} bxc6 {[%clk 00:10:18]} {[%emt 00:00:02]} 10.
O-O {[%clk 00:10:03]} {[%emt 00:00:04]} Be7 {[%clk 00:10:05]} {[%emt 00:00:16]}
11. Nh4 {[%clk 00:07:21]} {[%emt 00:02:45]} O-O {[%clk 00:09:22]} {[%emt
00:00:45]} 12. Nf5 {[%clk 00:07:17]} {[%emt 00:00:08]} Rb8 {[%clk 00:08:47]}
{[%emt 00:00:37]} 13. b3 {[%clk 00:06:53]} {[%emt 00:00:28]} Bxf5 {[%clk
00:08:37]} {[%emt 00:00:13]} 14. exf5 {[%clk 00:06:54]} {[%emt 00:00:02]} d5
{[%clk 00:08:33]} {[%emt 00:00:07]} 15. Bg5 {[%clk 00:06:27]} {[%emt 00:00:29]}
Re8 {[%clk 00:07:56]} {[%emt 00:00:41]} 16. Re1 {[%clk 00:06:06]} {[%emt
00:00:24]} Bb4 {[%clk 00:07:53]} {[%emt 00:00:06]} 17. Bxf6 {[%clk 00:03:36]}
{[%emt 00:02:33]} Qxf6 {[%clk 00:07:47]} {[%emt 00:00:09]} 18. Qf3 {[%clk
00:03:27]} {[%emt 00:00:12]} e4 {[%clk 00:07:25]} {[%emt 00:00:25]} 19. Qe3
{[%clk 00:00:59]} {[%emt 00:02:31]} Bxc3 {[%clk 00:06:37]} {[%emt 00:00:51]} 20.
Rad1 {[%clk 00:00:45]} {[%emt 00:00:16]} Bxe1 {[%clk 00:06:20]} {[%emt
00:00:20]} 21. Rxe1 {[%clk 00:00:45]} {[%emt 00:00:03]} Qxf5 {[%clk 00:06:19]}
{[%emt 00:00:04]} 22. f3 {[%clk 00:00:34]} {[%emt 00:00:14]} h6 {[%clk
00:06:00]} {[%emt 00:00:23]} 23. fxe4 {[%clk 00:00:31]} {[%emt 00:00:06]} Qxe4
{[%clk 00:05:58]} {[%emt 00:00:05]} 24. Qxe4 {[%clk 00:00:21]} {[%emt
00:00:12]} Rxe4 {[%clk 00:05:59]} {[%emt 00:00:03]} 25. Rf1 {[%clk 00:00:20]}
{[%emt 00:00:04]} Rbe8 {[%clk 00:05:58]} {[%emt 00:00:04]} 26. g3 {[%clk
00:00:11]} {[%emt 00:00:11]} Re1 {[%clk 00:05:49]} {[%emt 00:00:12]} 27. Rxe1
{[%clk 00:00:09]} {[%emt 00:00:05]} Rxe1+ {[%clk 00:05:50]} {[%emt 00:00:02]}
28. Kf2 {[%clk 00:00:11]} {[%emt 00:00:02]} Ra1 {[%clk 00:05:51]} {[%emt
00:00:02]} 29. a4 {[%clk 00:00:12]} {[%emt 00:00:01]} Ra2 {[%clk 00:05:52]}
{[%emt 00:00:02]} 30. Ke3 {[%clk 00:00:14]} {[%emt 00:00:03]} Rxc2 {[%clk
00:05:52]} {[%emt 00:00:02]} 31. Kd4 {[%clk 00:00:15]} {[%emt 00:00:01]} Rxh2
{[%clk 00:05:52]} {[%emt 00:00:03]} 32. Kc5 {[%clk 00:00:17]} {[%emt 00:00:02]}
Rb2 {[%clk 00:05:52]} {[%emt 00:00:03]} 33. b4 {[%clk 00:00:17]} {[%emt
00:00:02]} d4 {[%clk 00:05:49]} {[%emt 00:00:07]} 34. Kxd4 {[%clk 00:00:15]}
{[%emt 00:00:05]} Rxb4+ {[%clk 00:05:50]} {[%emt 00:00:02]} 35. Kc5 {[%clk
00:00:16]} {[%emt 00:00:01]} Rxa4 {[%clk 00:05:52]} {[%emt 00:00:02]} 36. Kxc6
{[%clk 00:00:18]} {[%emt 00:00:01]} f5 {[%clk 00:05:51]} {[%emt 00:00:04]} 37.
Kd5 {[%clk 00:00:17]} {[%emt 00:00:03]} f4 {[%clk 00:05:49]} {[%emt 00:00:05]}
38. gxf4 {[%clk 00:00:18]} {[%emt 00:00:02]} Rxf4 {[%clk 00:05:49]} {[%emt
00:00:03]} 39. Ke5 {[%clk 00:00:20]} {[%emt 00:00:02]} Rf2 {[%clk 00:05:45]}
{[%emt 00:00:06]} 40. Ke4 {[%clk 00:00:22]} {[%emt 00:00:01]} a5 {[%clk
00:05:47]} {[%emt 00:00:02]} 41. Ke3 {[%clk 00:00:24]} {[%emt 00:00:01]} a4
{[%clk 00:05:44]} {[%emt 00:00:06]} 42. Kxf2 {[%clk 00:00:25]} {[%emt
00:00:02]} a3 {[%clk 00:05:47]} {[%emt 00:00:01]} 43. Ke2 {[%clk 00:00:26]} a2
{[%clk 00:05:49]} 44. Kd2 {[%clk 00:00:29]} {[%emt 00:00:01]} a1=R {[%emt
00:00:03]} 45. Kc2 {[%clk 00:00:30]} Kf7 {[%clk 00:05:51]} {[%emt 00:00:02]} 46.
Kb2 {[%clk 00:00:32]} Rd1 {[%clk 00:05:52]} {[%emt 00:00:02]} 47. Kc2 {[%clk
00:00:34]} {[%emt 00:00:02]} Rd8 {[%clk 00:05:54]} 48. Kc3 {[%clk 00:00:36]}
{[%emt 00:00:01]} Ke6 {[%clk 00:05:56]} {[%emt 00:00:01]} 49. Kc4 {[%clk
00:00:38]} Rd1 {[%clk 00:05:56]} {[%emt 00:00:04]} 50. Kc3 {[%clk 00:00:40]}
Ke5 {[%clk 00:05:57]} {[%emt 00:00:02]} 51. Kc2 {[%clk 00:00:42]} Rd8 {[%clk
00:05:58]} {[%emt 00:00:02]} 52. Kc3 {[%clk 00:00:44]} {[%emt 00:00:01]} Ke4
{[%clk 00:05:59]} {[%emt 00:00:02]} 53. Kb4 {[%clk 00:00:46]} Rc8 {[%clk
00:06:00]} {[%emt 00:00:02]} 54. Kb5 {[%clk 00:00:48]} Kd4 {[%clk 00:06:02]}
{[%emt 00:00:01]} 55. Kb6 Kd5 {[%clk 00:06:04]} 56. Kb7 {[%clk 00:00:52]}
{[%emt 00:00:01]} Rc3 {[%clk 00:06:06]} 57. Kb6 {[%clk 00:00:54]} {[%emt
00:00:01]} Rc2 {[%emt 00:00:02]} 58. Ka5 {[%clk 00:00:56]} {[%emt 00:00:01]}
Rb2 {[%clk 00:06:09]} {[%emt 00:00:01]} 59. Ka4 {[%clk 00:00:58]} Rb7 {[%clk
00:06:11]} {[%emt 00:00:01]} 60. Ka5 {[%clk 00:00:59]} {[%emt 00:00:02]} Kc4
{[%clk 00:06:12]} {[%emt 00:00:01]} 61. Ka6 {[%clk 00:01:02]} Rb2 {[%clk
00:06:14]} {[%emt 00:00:02]} 62. Ka5 {[%clk 00:01:04]} Rb1 {[%clk 00:06:15]}
{[%emt 00:00:02]} 63. Ka4 {[%clk 00:01:06]} Ra1# {[%clk 00:05:54]} {[%emt
00:00:04]} 0-1

[Event "Orlicka sachovnice 2023"]
[Site "Usti nad Orlici, Czech Republic"]
[Date "2023.05.06"]
[Round "4.7"]
[White "Sixta, Karel"]
[Black "Seidl, Vaclav"]
[Result "0-1"]
[TimeControl "12 min + 3 s"]
[WhiteElo "1084"]
[BlackElo "1373"]

1. e4 {[%clk 00:12:05]} {[%emt 00:00:01]} d6 {[%clk 00:12:02]} {[%emt
00:00:04]} 2. Nf3 {[%clk 00:12:03]} {[%emt 00:00:04]} Nf6 {[%clk 00:12:04]}
{[%emt 00:00:02]} 3. Nc3 {[%clk 00:12:01]} {[%emt 00:00:05]} g6 {[%clk
00:12:07]} 4. Bc4 {[%clk 00:11:31]} {[%emt 00:00:33]} Bg7 {[%clk 00:12:08]}
{[%emt 00:00:02]} 5. d3 {[%clk 00:11:30]} {[%emt 00:00:04]} O-O {[%clk
00:12:07]} {[%emt 00:00:04]} 6. O-O {[%clk 00:11:31]} {[%emt 00:00:02]} c5
{[%clk 00:12:09]} {[%emt 00:00:01]} 7. Bg5 {[%clk 00:11:22]} {[%emt 00:00:13]}
Nc6 {[%clk 00:12:10]} {[%emt 00:00:01]} 8. a3 {[%clk 00:11:04]} {[%emt
00:00:21]} Bd7 {[%clk 00:12:08]} {[%emt 00:00:05]} 9. Qd2 {[%clk 00:10:56]}
{[%emt 00:00:10]} Re8 {[%clk 00:12:06]} {[%emt 00:00:06]} 10. Rfe1 {[%clk
00:10:32]} {[%emt 00:00:26]} a6 {[%clk 00:12:05]} {[%emt 00:00:06]} 11. Rad1
{[%clk 00:10:13]} {[%emt 00:00:21]} Qc7 {[%clk 00:12:07]} {[%emt 00:00:01]} 12.
Nd5 {[%clk 00:09:52]} {[%emt 00:00:23]} Nxd5 {[%clk 00:11:59]} {[%emt
00:00:11]} 13. exd5 {[%clk 00:09:47]} {[%emt 00:00:08]} Ne5 {[%clk 00:11:44]}
{[%emt 00:00:19]} 14. Nxe5 {[%clk 00:09:28]} {[%emt 00:00:21]} Bxe5 {[%clk
00:11:44]} {[%emt 00:00:03]} 15. c3 {[%clk 00:09:14]} {[%emt 00:00:21]} b5
{[%clk 00:11:44]} 16. Ba2 {[%clk 00:09:07]} {[%emt 00:00:08]} Bc8 {[%clk
00:11:14]} {[%emt 00:00:34]} 17. Rc1 {[%clk 00:08:59]} {[%emt 00:00:10]} Qd7
{[%clk 00:10:57]} {[%emt 00:00:19]} 18. c4 {[%clk 00:08:13]} {[%emt 00:00:50]}
Bb7 {[%clk 00:10:53]} {[%emt 00:00:07]} 19. cxb5 {[%clk 00:07:53]} {[%emt
00:00:22]} axb5 {[%clk 00:10:33]} {[%emt 00:00:26]} 20. b3 {[%clk 00:07:11]}
{[%emt 00:00:45]} Rxa3 {[%clk 00:10:02]} {[%emt 00:00:33]} 21. Rc2 {[%clk
00:06:11]} {[%emt 00:01:03]} Bxd5 {[%clk 00:09:42]} {[%emt 00:00:23]} 22. Bf4
{[%clk 00:05:16]} {[%emt 00:00:58]} Bxf4 {[%clk 00:09:18]} {[%emt 00:00:27]} 23.
Qxf4 {[%clk 00:05:17]} {[%emt 00:00:03]} Bxb3 {[%clk 00:09:15]} {[%emt
00:00:09]} 24. Bxb3 {[%clk 00:05:18]} Rxb3 {[%clk 00:09:16]} {[%emt 00:00:02]}
25. g3 {[%clk 00:04:56]} {[%emt 00:00:23]} Rxd3 {[%clk 00:09:13]} {[%emt
00:00:06]} 26. Rb2 {[%clk 00:04:30]} {[%emt 00:00:31]} Rd4 {[%clk 00:08:43]}
{[%emt 00:00:32]} 27. Qc1 {[%clk 00:03:59]} {[%emt 00:00:34]} e6 {[%clk
00:08:32]} {[%emt 00:00:14]} 28. Qe3 {[%clk 00:03:17]} {[%emt 00:00:45]} Rc8
{[%clk 00:08:03]} {[%emt 00:00:33]} 29. Reb1 {[%clk 00:03:06]} {[%emt
00:00:15]} b4 {[%clk 00:07:53]} {[%emt 00:00:12]} 30. Rb3 {[%clk 00:02:50]}
{[%emt 00:00:20]} d5 {[%clk 00:07:46]} {[%emt 00:00:10]} 31. Qe5 {[%clk
00:02:39]} {[%emt 00:00:13]} Qc7 {[%clk 00:07:26]} {[%emt 00:00:23]} 32. Qxc7
{[%clk 00:02:30]} {[%emt 00:00:12]} Rxc7 {[%clk 00:07:28]} 33. Kg2 {[%clk
00:02:31]} {[%emt 00:00:03]} Rd2 {[%clk 00:07:15]} {[%emt 00:00:16]} 34. Kf3
{[%clk 00:02:28]} {[%emt 00:00:06]} c4 {[%clk 00:07:13]} {[%emt 00:00:05]} 35.
Rxb4 {[%clk 00:02:18]} {[%emt 00:00:12]} c3 {[%clk 00:07:14]} {[%emt 00:00:03]}
36. Ke3 {[%clk 00:02:16]} {[%emt 00:00:04]} d4+ {[%clk 00:07:15]} {[%emt
00:00:03]} 37. Ke4 {[%clk 00:02:12]} {[%emt 00:00:06]} c2 {[%clk 00:07:09]}
{[%emt 00:00:10]} 38. Rb8+ {[%clk 00:01:44]} {[%emt 00:00:32]} Kg7 {[%clk
00:07:09]} {[%emt 00:00:03]} 39. Rc1 {[%clk 00:01:30]} {[%emt 00:00:16]} Rd1
{[%clk 00:07:08]} {[%emt 00:00:03]} 40. Rxd1 {[%clk 00:01:28]} {[%emt
00:00:05]} cxd1=Q {[%clk 00:07:05]} {[%emt 00:00:06]} 41. f4 {[%clk 00:01:22]}
{[%emt 00:00:08]} Qe2+ {[%clk 00:07:03]} {[%emt 00:00:05]} 42. Kxd4 {[%clk
00:01:21]} {[%emt 00:00:04]} Rd7+ {[%clk 00:07:05]} {[%emt 00:00:02]} 43. Kc3
{[%clk 00:01:20]} {[%emt 00:00:04]} Qd2+ {[%clk 00:07:03]} {[%emt 00:00:05]} 44.
Kc4 {[%clk 00:01:17]} {[%emt 00:00:05]} Rc7+ {[%emt 00:00:37]} 0-1

[Event "Orlicka sachovnice 2023"]
[Site "Usti nad Orlici, Czech Republic"]
[Date "2023.05.06"]
[Round "5.1"]
[White "Jun, Rostislav"]
[Black "Stary, Vojtech"]
[Result "0-1"]
[TimeControl "12 min + 3 s"]
[WhiteElo "1370"]
[BlackElo "1604"]

1. e4 {[%clk 00:12:03]} {[%emt 00:00:02]} c5 {[%clk 00:12:05]} {[%emt
00:00:01]} 2. Nf3 {[%clk 00:12:04]} {[%emt 00:00:02]} e6 {[%clk 00:12:07]}
{[%emt 00:00:01]} 3. Nc3 {[%clk 00:12:04]} {[%emt 00:00:03]} Nc6 {[%emt
00:00:03]} 4. d4 {[%clk 00:12:05]} cxd4 {[%clk 00:12:11]} {[%emt 00:00:01]} 5.
Nxd4 {[%clk 00:12:07]} {[%emt 00:00:02]} Qc7 {[%clk 00:12:12]} {[%emt
00:00:02]} 6. Be3 {[%clk 00:11:56]} {[%emt 00:00:13]} a6 {[%clk 00:12:15]} 7.
a3 {[%clk 00:11:54]} {[%emt 00:00:06]} Nf6 {[%clk 00:12:13]} {[%emt 00:00:04]}
8. Bc4 {[%clk 00:11:46]} {[%emt 00:00:10]} Be7 {[%clk 00:12:07]} {[%emt
00:00:09]} 9. O-O {[%clk 00:11:41]} {[%emt 00:00:08]} O-O {[%emt 00:00:27]} 10.
Ba2 {[%emt 00:00:33]} b5 {[%emt 00:00:24]} 11. f4 {[%emt 00:00:34]} Bb7 {[%emt
00:00:06]} 12. e5 {[%clk 00:11:03]} {[%emt 00:00:18]} Ne8 {[%emt 00:00:42]} 13.
Qg4 {[%emt 00:01:52]} Nxd4 {[%clk 00:08:43]} 14. Bxd4 {[%emt 00:00:32]} Bc5
{[%emt 00:00:59]} 15. Bxc5 {[%clk 00:09:41]} {[%emt 00:00:03]} Qxc5+ {[%emt
00:00:03]} 16. Kh1 {[%emt 00:00:32]} d6 {[%emt 00:00:36]} 17. exd6 {[%emt
00:00:28]} Qxd6 {[%emt 00:00:21]} 18. f5 {[%emt 00:00:19]} Nf6 {[%emt
00:00:40]} 19. Qh3 {[%emt 00:00:05]} exf5 {[%emt 00:00:35]} 20. Rxf5 {[%emt
00:00:53]} Bc8 {[%emt 00:00:44]} 21. Rd1 {[%emt 00:00:37]} Bxf5 {[%clk
00:05:48]} {[%emt 00:00:04]} 22. Qxf5 {[%emt 00:00:14]} Qc7 {[%emt 00:00:16]}
23. Ne4 {[%emt 00:00:25]} Nxe4 {[%clk 00:05:07]} {[%emt 00:00:03]} 24. Qxe4
{[%emt 00:00:16]} Rad8 {[%emt 00:00:34]} 25. Rf1 {[%emt 00:00:53]} Kh8 {[%emt
00:00:21]} 26. h3 {[%clk 00:05:54]} {[%emt 00:00:01]} f6 {[%emt 00:00:11]} 27.
Qf5 {[%emt 00:00:06]} Qe5 {[%emt 00:00:43]} 28. Qxe5 {[%clk 00:05:00]} {[%emt
00:00:49]} fxe5 {[%clk 00:03:24]} {[%emt 00:00:01]} 29. Rxf8+ {[%clk 00:05:00]}
{[%emt 00:00:03]} Rxf8 {[%clk 00:03:25]} {[%emt 00:00:01]} 30. Kg1 {[%emt
00:00:06]} g5 {[%clk 00:03:18]} {[%emt 00:00:09]} 31. c3 {[%clk 00:04:55]}
{[%emt 00:00:07]} 0-1

[Event "Orlicka sachovnice 2023"]
[Site "Usti nad Orlici, Czech Republic"]
[Date "2023.05.06"]
[Round "5.2"]
[White "Smehlik, Vojtech"]
[Black "Jun, Robert"]
[Result "1-0"]
[TimeControl "12 min + 3 s"]
[WhiteElo "1369"]
[BlackElo "1424"]

1. e4 {[%clk 00:12:04]} {[%emt 00:00:01]} c5 {[%clk 00:12:06]} 2. Nf3 {[%clk
00:12:05]} {[%emt 00:00:02]} d6 {[%clk 00:12:08]} {[%emt 00:00:01]} 3. d4
{[%clk 00:12:07]} {[%emt 00:00:01]} cxd4 {[%clk 00:12:09]} {[%emt 00:00:01]} 4.
Nxd4 {[%clk 00:12:08]} {[%emt 00:00:02]} e6 {[%clk 00:12:12]} {[%emt 00:00:01]}
5. Nc3 {[%clk 00:12:05]} {[%emt 00:00:06]} Nf6 {[%clk 00:12:13]} {[%emt
00:00:01]} 6. Bb5+ {[%clk 00:12:02]} {[%emt 00:00:06]} Bd7 {[%clk 00:12:15]}
{[%emt 00:00:02]} 7. Bxd7+ {[%clk 00:12:03]} {[%emt 00:00:02]} Nbxd7 {[%clk
00:12:17]} 8. Ndb5 {[%clk 00:11:49]} {[%emt 00:00:18]} Nc5 {[%clk 00:12:12]}
{[%emt 00:00:08]} 9. Bg5 {[%clk 00:11:39]} {[%emt 00:00:13]} Ncxe4 {[%clk
00:10:13]} {[%emt 00:02:02]} 10. Nxe4 {[%clk 00:11:26]} {[%emt 00:00:16]} Qa5+
{[%clk 00:10:14]} 11. Nec3 {[%clk 00:11:27]} {[%emt 00:00:02]} a6 {[%clk
00:10:06]} {[%emt 00:00:11]} 12. Bxf6 {[%clk 00:10:50]} {[%emt 00:00:40]} axb5
{[%clk 00:09:51]} {[%emt 00:00:18]} 13. Bd4 {[%clk 00:10:09]} {[%emt 00:00:44]}
e5 {[%clk 00:09:36]} {[%emt 00:00:18]} 14. Be3 {[%clk 00:10:02]} {[%emt
00:00:10]} b4 {[%clk 00:09:05]} {[%emt 00:00:35]} 15. Ne2 {[%clk 00:09:54]}
{[%emt 00:00:10]} b3+ {[%clk 00:08:51]} {[%emt 00:00:17]} 16. Bd2 {[%clk
00:09:55]} {[%emt 00:00:02]} Qd5 {[%clk 00:08:53]} 17. O-O {[%clk 00:09:32]}
{[%emt 00:00:26]} bxa2 {[%clk 00:08:46]} {[%emt 00:00:11]} 18. b3 {[%clk
00:09:22]} {[%emt 00:00:13]} Be7 {[%clk 00:08:42]} {[%emt 00:00:07]} 19. Nc3
{[%clk 00:09:15]} {[%emt 00:00:10]} Qe6 {[%clk 00:08:38]} {[%emt 00:00:07]} 20.
Nxa2 {[%clk 00:08:24]} {[%emt 00:00:54]} O-O {[%clk 00:08:35]} {[%emt
00:00:05]} 21. Nc3 {[%clk 00:08:21]} {[%emt 00:00:06]} Rac8 {[%clk 00:08:38]}
22. Qf3 {[%clk 00:07:54]} {[%emt 00:00:30]} b5 {[%clk 00:08:29]} {[%emt
00:00:11]} 23. Qd5 {[%clk 00:07:20]} {[%emt 00:00:37]} Qf5 {[%clk 00:08:06]}
{[%emt 00:00:27]} 24. Ra2 {[%clk 00:06:28]} {[%emt 00:00:55]} b4 {[%clk
00:08:03]} {[%emt 00:00:06]} 25. Ne4 {[%clk 00:06:10]} {[%emt 00:00:21]} Rfd8
{[%clk 00:06:55]} {[%emt 00:01:10]} 26. Bxb4 {[%clk 00:06:00]} {[%emt
00:00:13]} Qg6 {[%clk 00:06:50]} {[%emt 00:00:08]} 27. Rfa1 {[%clk 00:04:42]}
{[%emt 00:01:21]} Qh6 {[%clk 00:06:23]} {[%emt 00:00:30]} 28. c4 {[%clk
00:04:07]} {[%emt 00:00:38]} Rb8 {[%clk 00:06:12]} {[%emt 00:00:14]} 29. Ra7
{[%clk 00:03:55]} {[%emt 00:00:15]} Rxb4 {[%clk 00:06:00]} {[%emt 00:00:14]} 30.
Rxe7 {[%clk 00:03:52]} {[%emt 00:00:06]} Qg6 {[%clk 00:05:48]} {[%emt
00:00:15]} 31. Nxd6 {[%clk 00:03:19]} {[%emt 00:00:36]} Rxb3 {[%clk 00:05:29]}
{[%emt 00:00:22]} 32. Qxf7+ {[%clk 00:03:12]} {[%emt 00:00:10]} Qxf7 {[%clk
00:05:17]} {[%emt 00:00:15]} 33. Nxf7 {[%clk 00:03:11]} {[%emt 00:00:05]} Rdb8
{[%clk 00:05:14]} {[%emt 00:00:06]} 34. Nh6+ {[%clk 00:02:15]} {[%emt
00:00:58]} gxh6 {[%clk 00:05:10]} {[%emt 00:00:08]} 35. Rxe5 {[%clk 00:02:16]}
{[%emt 00:00:01]} Rb1+ {[%clk 00:05:10]} {[%emt 00:00:03]} 36. Re1 {[%clk
00:02:18]} {[%emt 00:00:01]} Rxe1+ {[%clk 00:05:03]} {[%emt 00:00:10]} 37. Rxe1
{[%clk 00:02:19]} {[%emt 00:00:02]} Rb4 {[%clk 00:04:57]} {[%emt 00:00:09]} 38.
Rc1 {[%clk 00:02:20]} {[%emt 00:00:02]} Kf7 {[%clk 00:04:58]} {[%emt 00:00:02]}
39. f3 {[%clk 00:02:22]} {[%emt 00:00:02]} Ke6 {[%clk 00:05:01]} {[%emt
00:00:01]} 40. Re1+ {[%clk 00:02:17]} {[%emt 00:00:08]} Kd6 {[%clk 00:05:02]}
{[%emt 00:00:01]} 41. Rd1+ {[%clk 00:02:16]} {[%emt 00:00:03]} Ke5 {[%clk
00:05:05]} {[%emt 00:00:02]} 42. Rd7 {[%clk 00:02:13]} {[%emt 00:00:05]} Rxc4
{[%clk 00:04:51]} {[%emt 00:00:17]} 43. Rxh7 {[%clk 00:02:14]} {[%emt
00:00:02]} Kf4 {[%clk 00:04:53]} {[%emt 00:00:01]} 44. Rf7+ {[%clk 00:02:12]}
{[%emt 00:00:06]} Ke3 {[%clk 00:04:51]} {[%emt 00:00:04]} 45. h3 {[%clk
00:02:07]} {[%emt 00:00:08]} Rc1+ {[%clk 00:04:48]} {[%emt 00:00:07]} 46. Kh2
{[%clk 00:02:09]} {[%emt 00:00:01]} Kf2 {[%clk 00:04:50]} {[%emt 00:00:01]} 47.
f4 {[%clk 00:02:00]} {[%emt 00:00:12]} Rg1 {[%clk 00:04:48]} {[%emt 00:00:04]}
48. Rg7 {[%clk 00:02:01]} {[%emt 00:00:02]} Re1 {[%clk 00:04:42]} {[%emt
00:00:08]} 49. f5 {[%clk 00:01:58]} {[%emt 00:00:06]} Re5 {[%clk 00:04:35]}
{[%emt 00:00:10]} 50. f6 {[%clk 00:01:54]} {[%emt 00:00:08]} Rf5 {[%clk
00:04:37]} 51. Rg6 {[%clk 00:01:46]} {[%emt 00:00:12]} h5 {[%clk 00:04:38]}
{[%emt 00:00:02]} 52. Rh6 {[%clk 00:01:35]} {[%emt 00:00:13]} Ke3 {[%clk
00:04:21]} {[%emt 00:00:20]} 53. f7 {[%clk 00:01:25]} {[%emt 00:00:13]} Rxf7
{[%clk 00:04:18]} {[%emt 00:00:06]} 54. Rxh5 {[%clk 00:01:26]} {[%emt
00:00:02]} Kf4 {[%clk 00:04:18]} {[%emt 00:00:03]} 55. Rh4+ {[%clk 00:01:27]}
{[%emt 00:00:02]} Kg5 {[%clk 00:04:18]} {[%emt 00:00:02]} 56. Rg4+ {[%clk
00:01:29]} {[%emt 00:00:02]} Kh6 {[%clk 00:04:21]} 57. Kg3 {[%clk 00:01:26]}
{[%emt 00:00:07]} Rd7 {[%clk 00:04:22]} {[%emt 00:00:02]} 58. Rf4 {[%clk
00:01:26]} {[%emt 00:00:03]} Rd3+ {[%clk 00:04:22]} {[%emt 00:00:02]} 59. Rf3
{[%clk 00:01:28]} {[%emt 00:00:01]} Rd4 {[%clk 00:04:24]} 60. h4 {[%clk
00:01:27]} {[%emt 00:00:04]} Kh5 {[%clk 00:04:21]} {[%emt 00:00:07]} 61. Rf5+
{[%clk 00:01:28]} {[%emt 00:00:02]} Kg6 {[%clk 00:04:23]} {[%emt 00:00:01]} 62.
Rg5+ {[%clk 00:01:26]} {[%emt 00:00:05]} Kh6 {[%clk 00:04:19]} {[%emt
00:00:07]} 63. Kh3 {[%clk 00:01:22]} {[%emt 00:00:07]} Rd3+ {[%clk 00:04:18]}
{[%emt 00:00:03]} 64. g3 {[%clk 00:01:24]} {[%emt 00:00:02]} Rd4 {[%clk
00:04:19]} {[%emt 00:00:01]} 65. Rg4 {[%clk 00:01:26]} {[%emt 00:00:03]} Rd8
{[%clk 00:04:21]} 66. Rf4 {[%clk 00:01:28]} {[%emt 00:00:01]} Kg6 {[%clk
00:04:21]} {[%emt 00:00:03]} 67. Kg4 {[%clk 00:01:27]} {[%emt 00:00:03]} Rc8
{[%clk 00:04:20]} {[%emt 00:00:04]} 68. h5+ {[%clk 00:01:28]} {[%emt 00:00:02]}
Kh6 {[%clk 00:04:22]} 69. Kh4 {[%clk 00:01:29]} {[%emt 00:00:02]} Rc1 {[%clk
00:04:16]} {[%emt 00:00:09]} 70. Re4 {[%clk 00:01:24]} {[%emt 00:00:08]} Rh1+
{[%clk 00:04:14]} {[%emt 00:00:04]} 71. Kg4 {[%clk 00:01:26]} {[%emt 00:00:02]}
Rg1 {[%clk 00:04:13]} {[%emt 00:00:04]} 72. Re6+ {[%clk 00:01:21]} {[%emt
00:00:09]} Kg7 {[%clk 00:04:13]} {[%emt 00:00:03]} 73. Kf4 {[%clk 00:01:11]}
{[%emt 00:00:13]} Rf1+ {[%clk 00:04:12]} {[%emt 00:00:04]} 74. Kg5 {[%clk
00:01:13]} {[%emt 00:00:01]} Rg1 {[%clk 00:04:14]} 75. g4 {[%clk 00:01:15]}
{[%emt 00:00:01]} Rc1 {[%clk 00:04:13]} {[%emt 00:00:04]} 76. h6+ {[%clk
00:01:12]} {[%emt 00:00:06]} Kf7 {[%clk 00:04:07]} {[%emt 00:00:09]} 77. Rf6+
{[%clk 00:01:14]} {[%emt 00:00:02]} Kg8 {[%clk 00:04:07]} {[%emt 00:00:03]} 78.
Kg6 {[%clk 00:01:13]} {[%emt 00:00:04]} Rh1 {[%clk 00:03:58]} {[%emt 00:00:11]}
79. g5 {[%clk 00:01:12]} {[%emt 00:00:04]} Rh3 {[%clk 00:03:45]} {[%emt
00:00:15]} 80. Rd6 {[%clk 00:01:14]} {[%emt 00:00:02]} Kf8 {[%clk 00:03:44]}
{[%emt 00:00:05]} 81. h7 {[%clk 00:01:15]} {[%emt 00:00:02]} Ke7 {[%clk
00:03:39]} {[%emt 00:00:08]} 82. Ra6 {[%clk 00:01:15]} {[%emt 00:00:03]} Kd7
{[%clk 00:03:22]} {[%emt 00:00:20]} 83. Kg7 {[%clk 00:01:16]} {[%emt 00:00:01]}
Rg3 {[%clk 00:03:20]} {[%emt 00:00:05]} 84. g6 {[%clk 00:01:18]} {[%emt
00:00:02]} Rh3 {[%clk 00:03:02]} {[%emt 00:00:21]} 85. h8=Q {[%clk 00:01:16]}
{[%emt 00:00:05]} Rxh8 {[%clk 00:02:48]} {[%emt 00:00:16]} 86. Kxh8 {[%clk
00:01:18]} {[%emt 00:00:02]} Ke7 {[%clk 00:02:50]} 87. g7 {[%clk 00:01:20]}
{[%emt 00:00:01]} Kd7 {[%clk 00:02:51]} {[%emt 00:00:02]} 88. g8=Q {[%clk
00:01:18]} {[%emt 00:00:06]} 1-0